bitfinex-derivatives/quotes_BTCF0:USTF0_20241125
["timestamp","ask_amount","ask_price","bid_price","bid_amount"]
[1732559062383,0.00013106,95817.0,95816.0,0.09160041]
[1732559062990,0.00013106,95817.0,95816.0,0.33797526]
[1732559063189,0.00013106,95817.0,95816.0,0.07757075]
[1732559063384,0.00113106,95817.0,95816.0,0.1165863]
[1732559064884,0.00113106,95817.0,95816.0,0.0644013]
[1732559065186,0.00113106,95817.0,95816.0,0.04039173]
[1732559065385,0.00113106,95817.0,95816.0,0.02538575]
[1732559065984,0.00113106,95817.0,95816.0,0.27188973]
[1732559066182,0.00113106,95817.0,95788.0,0.4661268]
[1732559066183,0.05219,95808.0,95807.0,0.30832434]
[1732559066488,0.05219,95808.0,95802.0,0.30832434]
[1732559066489,0.0004,95808.0,95802.0,0.30832434]
[1732559066689,0.05219,95807.0,95802.0,0.052193]
[1732559066887,0.0004,95803.0,95802.0,0.052193]
[1732559067788,0.0004,95803.0,95802.0,0.07731149]
[1732559067989,0.0004,95803.0,95802.0,0.4780137]
[1732559068185,0.001,95808.0,95802.0,0.4258207]
[1732559068491,0.001,95808.0,95807.0,0.05259]
[1732559069090,0.052186,95815.0,95812.0,0.052187]
[1732559069284,0.00013106,95817.0,95812.0,0.052187]
[1732559069484,0.052187,95814.0,95812.0,0.052187]
[1732559069887,0.00013106,95817.0,95807.0,0.18515528]
[1732559070193,0.00013106,95817.0,95816.0,0.052585]
[1732559071686,0.00013106,95817.0,95816.0,0.413385]
[1732559072684,0.00113106,95817.0,95816.0,0.413385]
[1732559073292,0.00013106,95817.0,95816.0,0.413385]
[1732559073493,0.00113106,95817.0,95816.0,0.413385]
[1732559074590,0.00113106,95817.0,95816.0,0.43781548]
[1732559075494,0.31421106,95817.0,95816.0,4.8e-07]
[1732559075791,0.31421106,95817.0,95792.0,0.30859214]
[1732559075792,0.052198,95794.0,95792.0,0.052198]
[1732559075999,0.3608,95793.0,95792.0,0.02507456]
[1732559076199,0.12494397,95800.0,95792.0,0.052199]
[1732559076492,0.51697997,95810.0,95792.0,0.052199]
[1732559076493,0.36140001,95810.0,95809.0,0.052189]
[1732559076791,0.00113106,95817.0,95816.0,0.052185]
[1732559077098,0.00113106,95817.0,95816.0,0.052585]
[1732559077693,0.05331606,95817.0,95816.0,0.0004]
[1732559077884,0.05231606,95817.0,95816.0,0.0004]
[1732559078685,0.05231606,95817.0,95792.0,0.001]
[1732559078686,0.052188,95811.0,95792.0,0.23741844]
[1732559078886,0.052188,95811.0,95780.0,0.3608]
[1732559078887,0.3608,95800.0,95780.0,0.36168]
[1732559079205,0.00040001,95781.0,95780.0,0.413005]
[1732559079389,0.00040001,95781.0,95777.0,0.00075514]
[1732559079895,0.413006,95778.0,95777.0,0.00075514]
[1732559080197,0.41340601,95778.0,95777.0,0.00075514]
[1732559080391,0.72664601,95778.0,95777.0,0.00075514]
[1732559081094,0.88278018,95778.0,95777.0,0.00075514]
[1732559081396,0.72664601,95778.0,95777.0,0.00075514]
[1732559083089,0.41340601,95778.0,95777.0,0.00075514]
[1732559084095,0.57096601,95778.0,95777.0,0.00075514]
[1732559084491,0.88420601,95778.0,95777.0,0.00075514]
[1732559084797,0.57096601,95778.0,95777.0,0.00075514]
[1732559084992,0.41340601,95778.0,95777.0,0.00075514]
[1732559085996,0.36120001,95778.0,95777.0,0.00075514]
[1732559086991,0.51876001,95778.0,95777.0,0.00075514]
[1732559088884,0.36120001,95778.0,95777.0,0.00075514]
[1732559089084,0.51876001,95778.0,95777.0,0.00075514]
[1732559090291,0.57096601,95778.0,95777.0,0.00075514]
[1732559090586,0.57996601,95778.0,95777.0,0.00175514]
[1732559091188,0.42240601,95778.0,95777.0,0.00175514]
[1732559091593,0.06160601,95778.0,95777.0,0.05396214]
[1732559095099,0.06160601,95778.0,95777.0,0.00175514]
[1732559095901,0.42240601,95778.0,95777.0,0.00175514]
[1732559098394,0.42240601,95778.0,95777.0,0.05396214]
[1732559099301,0.57802767,95778.0,95777.0,0.05396214]
[1732559099699,0.42240601,95778.0,95777.0,0.05396214]
[1732559100000,0.57802767,95778.0,95777.0,0.05396214]
[1732559100698,0.37020001,95778.0,95777.0,0.05396214]
[1732559100901,0.00940001,95778.0,95777.0,0.05396214]
[1732559102506,0.06160601,95778.0,95777.0,0.00175514]
[1732559102807,0.06160601,95778.0,95777.0,0.05396214]
[1732559105600,0.052203,95784.0,95783.0,0.052203]
[1732559106007,0.052203,95784.0,95777.0,0.15863514]
[1732559106008,0.052203,95784.0,95777.0,0.00107514]
[1732559106200,0.413006,95778.0,95777.0,0.00107514]
[1732559106503,0.570966,95778.0,95777.0,0.00107514]
[1732559106705,0.570966,95778.0,95777.0,7.514e-05]
[1732559107095,0.72714813,95778.0,95777.0,7.514e-05]
[1732559107295,0.73514813,95778.0,95777.0,0.00107514]
[1732559107507,0.73514813,95778.0,95777.0,0.05328214]
[1732559107508,0.73515755,95778.0,95777.0,0.05328214]
[1732559107704,0.578966,95778.0,95777.0,0.00107514]
[1732559109602,0.76668995,95778.0,95777.0,0.00107514]
[1732559110105,0.76668756,95778.0,95777.0,0.05328214]
[1732559110308,0.60912756,95778.0,95777.0,0.05328214]
[1732559110810,0.0084,95778.0,95777.0,0.05328214]
[1732559111003,0.15643095,95780.0,95778.0,0.052206]
[1732559111203,0.00067451,95785.0,95777.0,0.57164214]
[1732559111408,0.00067451,95785.0,95784.0,0.052203]
[1732559113206,0.05287651,95785.0,95784.0,0.052203]
[1732559113805,0.05287651,95785.0,95784.0,0.053203]
[1732559113806,0.05587651,95785.0,95784.0,0.053203]
[1732559114309,0.05587651,95785.0,95784.0,0.07838902]
[1732559114503,0.05587651,95785.0,95784.0,0.02618602]
[1732559115913,0.00367451,95785.0,95784.0,0.07838902]
[1732559116797,0.05587651,95785.0,95784.0,0.053203]
[1732559118108,0.00367451,95785.0,95784.0,0.053203]
[1732559125417,0.00367451,95785.0,95784.0,0.001]
[1732559125418,0.05587651,95785.0,95784.0,0.001]
[1732559125611,0.21335651,95785.0,95784.0,0.001]
[1732559126013,0.052207,95777.0,95760.0,0.02089343]
[1732559126313,0.3132,95784.0,95754.0,0.052219]
[1732559126314,0.052219,95755.0,95754.0,0.052219]
[1732559126516,0.3608,95758.0,95750.0,0.052221]
[1732559126814,0.3608,95758.0,95727.0,0.3608]
[1732559126815,0.0004,95755.0,95731.0,0.0026]
[1732559127017,0.052227,95739.0,95732.0,8.11e-05]
[1732559127214,0.413427,95739.0,95733.0,0.02446072]
[1732559127413,0.726787,95739.0,95733.0,0.02446072]
[1732559128219,0.726787,95739.0,95738.0,0.00948]
[1732559129220,0.413427,95739.0,95738.0,0.00948]
[1732559129422,0.570947,95739.0,95738.0,0.00948]
[1732559129612,0.570947,95739.0,95738.0,0.00148]
[1732559129613,0.891307,95739.0,95738.0,0.00148]
[1732559129810,0.577947,95739.0,95738.0,0.00148]
[1732559130009,0.891307,95739.0,95738.0,0.00148]
[1732559130213,0.577947,95739.0,95738.0,0.00148]
[1732559131321,0.577947,95739.0,95738.0,0.001]
[1732559133120,0.3682,95739.0,95738.0,0.001]
[1732559134118,0.0074,95739.0,95738.0,0.001]
[1732559134520,0.0074,95739.0,95738.0,0.02111412]
[1732559134720,0.0074,95739.0,95738.0,0.001]
[1732559137428,0.10070542,95739.0,95738.0,0.001]
[1732559137629,0.0074,95739.0,95738.0,0.001]
[1732559138131,0.13181938,95739.0,95738.0,0.00017301]
[1732559138325,0.0074,95739.0,95738.0,0.00017301]
[1732559139131,0.052231,95733.0,95732.0,8.11e-05]
[1732559139332,0.15756,95733.0,95732.0,8.11e-05]
[1732559139624,0.15796,95733.0,95732.0,8.11e-05]
[1732559139823,0.21373934,95733.0,95732.0,8.11e-05]
[1732559140217,0.20096,95733.0,95732.0,0.0010811]
[1732559140829,0.16496,95733.0,95732.0,0.0010811]
[1732559142320,0.28936301,95733.0,95732.0,0.0010811]
[1732559142625,0.16496,95733.0,95732.0,0.0010811]
[1732559143018,0.0074,95733.0,95732.0,0.0010811]
[1732559143223,0.0074,95733.0,95732.0,0.0361811]
[1732559145327,0.0074,95733.0,95732.0,0.0010811]
[1732559149229,0.0074,95733.0,95732.0,0.0380811]
[1732559149930,0.0074,95733.0,95732.0,0.0010811]
[1732559150135,0.0074,95733.0,95732.0,0.0533121]
[1732559150317,0.059631,95733.0,95732.0,0.0010811]
[1732559150518,0.059631,95733.0,95732.0,0.0533121]
[1732559151130,0.059631,95733.0,95732.0,0.0010811]
[1732559151832,0.059631,95733.0,95710.0,0.0026]
[1732559151833,0.052238,95720.0,95710.0,0.0026]
[1732559152036,0.052238,95720.0,95700.0,0.1]
[1732559152037,0.413041,95715.0,95700.0,0.1]
[1732559152236,0.052248,95701.0,95700.0,0.1]
[1732559152421,0.052648,95701.0,95700.0,0.1]
[1732559153227,0.052648,95701.0,95700.0,0.109]
[1732559153422,0.0014,95701.0,95700.0,0.161249]
[1732559153631,0.0014,95701.0,95700.0,0.474729]
[1732559153827,0.12477054,95716.0,95711.0,0.052243]
[1732559154042,0.15545914,95718.0,95717.0,0.052239]
[1732559154226,0.16008,95737.0,95715.0,0.3608]
[1732559154227,0.12477054,95730.0,95715.0,0.3608]
[1732559154431,0.052239,95718.0,95717.0,0.00080001]
[1732559154624,0.17700954,95718.0,95717.0,0.00080001]
[1732559154828,0.052239,95718.0,95707.0,0.052245]
[1732559155136,0.052239,95718.0,95702.0,0.0372]
[1732559155137,0.052247,95703.0,95702.0,0.0568343]
[1732559155329,0.1248698,95709.0,95702.0,0.0568343]
[1732559155524,0.51828,95711.0,95703.0,0.3608]
[1732559155525,0.12503239,95706.0,95703.0,0.3608]
[1732559155736,0.12503239,95705.0,95704.0,0.052247]
[1732559155926,0.12503239,95706.0,95705.0,0.052246]
[1732559156129,0.12503239,95707.0,95705.0,0.052246]
[1732559156329,0.15630153,95712.0,95711.0,0.052243]
[1732559157033,0.15630153,95713.0,95712.0,0.052242]
[1732559157223,0.15752,95721.0,95713.0,0.052242]
[1732559157224,0.20854253,95714.0,95713.0,0.052242]
[1732559157531,0.15752,95721.0,95712.0,0.0004]
[1732559157733,0.15639247,95714.0,95713.0,0.052242]
[1732559157933,0.0004,95713.0,95712.0,0.052642]
[1732559158330,0.052642,95713.0,95712.0,0.052642]
[1732559158831,0.052642,95713.0,95712.0,0.07265488]
[1732559159839,0.0054,95713.0,95712.0,0.07265488]
[1732559160626,0.0054,95713.0,95712.0,0.38609488]
[1732559160824,0.12508242,95738.0,95737.0,0.052229]
[1732559161029,0.17623907,95744.0,95738.0,0.052228]
[1732559161030,0.0004,95739.0,95738.0,0.052228]
[1732559161225,0.09377907,95752.0,95751.0,0.052221]
[1732559161524,0.09391127,95754.0,95753.0,0.05222]
[1732559161724,0.14613027,95754.0,95753.0,0.05222]
[1732559161932,0.14613027,95754.0,95753.0,0.05301999]
[1732559162231,0.14609156,95754.0,95753.0,0.05301999]
[1732559162426,0.0523512,95754.0,95753.0,0.05301999]
[1732559162839,0.0001322,95754.0,95753.0,0.07335517]
[1732559163138,0.0051322,95754.0,95753.0,0.07335517]
[1732559163338,0.0051322,95754.0,95753.0,0.43415517]
[1732559163526,0.0051322,95754.0,95753.0,0.74760906]
[1732559163726,0.12508242,95769.0,95753.0,0.69538906]
[1732559163727,0.09374036,95769.0,95753.0,0.69538906]
[1732559163933,0.09374036,95769.0,95768.0,0.3608]
[1732559164132,0.052207,95777.0,95768.0,0.36159999]
[1732559164437,0.052207,95777.0,95768.0,0.00079999]
[1732559164630,0.052211,95771.0,95770.0,0.05221]
[1732559165037,0.00010362,95771.0,95770.0,0.05221]
[1732559165637,0.00010362,95771.0,95770.0,0.07166234]
[1732559166136,0.00410362,95771.0,95770.0,0.07166234]
[1732559166942,0.00410362,95771.0,95770.0,0.74570234]
[1732559167131,0.00010362,95771.0,95770.0,0.74570234]
[1732559167332,0.00410362,95771.0,95770.0,0.74570234]
[1732559168648,0.00410362,95771.0,95770.0,0.43246234]
[1732559168939,0.052215,95762.0,95760.0,0.36172]
[1732559169138,0.31734362,95771.0,95740.0,0.48276]
[1732559169139,0.052214,95764.0,95753.0,0.00013389]
[1732559169330,0.052219,95754.0,95753.0,0.00013389]
[1732559169536,0.052227,95739.0,95731.0,0.054832]
[1732559169734,0.052227,95739.0,95720.0,0.0343]
[1732559169735,0.1767896,95739.0,95720.0,0.0343]
[1732559170039,0.1767896,95739.0,95718.0,0.15744]
[1732559170040,0.052627,95739.0,95730.0,0.052232]
[1732559170240,0.052627,95739.0,95734.0,0.05223]
[1732559170747,0.052627,95739.0,95735.0,0.05223]
[1732559171129,0.052627,95739.0,95731.0,0.00010555]
[1732559171130,0.0004,95739.0,95738.0,0.052628]
[1732559171333,0.09382588,95739.0,95738.0,0.052628]
[1732559171539,0.0004,95739.0,95738.0,0.052628]
[1732559172132,0.0044,95739.0,95738.0,0.052628]
[1732559172534,0.0004,95739.0,95738.0,0.052628]
[1732559172843,0.0044,95739.0,95738.0,0.052628]
[1732559175046,0.0004,95739.0,95738.0,0.052628]
[1732559175346,0.0044,95739.0,95738.0,0.052628]
[1732559175536,0.0004,95739.0,95738.0,0.052628]
[1732559175732,0.0044,95739.0,95738.0,0.052628]
[1732559175934,0.056627,95739.0,95738.0,0.052628]
[1732559176137,0.056627,95739.0,95738.0,0.0004]
[1732559176338,0.052231,95732.0,95731.0,0.00010555]
[1732559176639,0.052231,95732.0,95716.0,0.0026]
[1732559176640,0.052239,95718.0,95716.0,0.0026]
[1732559176838,0.05224,95717.0,95715.0,0.05224]
[1732559177133,0.0004,95716.0,95715.0,0.05224]
[1732559178735,0.052242,95713.0,95711.0,0.00013311]
[1732559178937,0.36527545,95716.0,95694.0,0.04072556]
[1732559178938,0.052248,95701.0,95694.0,0.04072556]
[1732559179150,0.052248,95701.0,95700.0,0.1]
[1732559179151,0.573528,95701.0,95700.0,0.1]
[1732559179442,0.052256,95687.0,95685.0,0.0026]
[1732559179654,0.052257,95685.0,95684.0,0.02003378]
[1732559179948,0.0004,95685.0,95684.0,0.00010539]
[1732559180147,0.052657,95685.0,95684.0,0.00010539]
[1732559180344,0.0004,95685.0,95684.0,0.05236239]
[1732559181338,0.0014,95685.0,95684.0,0.05236239]
[1732559181847,0.0014,95685.0,95684.0,0.42216239]
[1732559181848,0.0024,95685.0,95684.0,0.42216239]
[1732559183347,0.0024,95685.0,95684.0,0.58268239]
[1732559183542,0.0024,95685.0,95684.0,0.89620239]
[1732559183852,1e-06,95685.0,95684.0,0.89620239]
[1732559184042,0.0026,95700.0,95699.0,0.052249]
[1732559184351,0.09342588,95713.0,95712.0,0.052242]
[1732559184739,0.09342588,95713.0,95712.0,0.052642]
[1732559185448,0.09742588,95713.0,95712.0,0.052642]
[1732559185650,0.09742588,95713.0,95712.0,0.07258081]
[1732559185950,0.09742588,95713.0,95712.0,0.052642]
[1732559187146,0.14966788,95713.0,95712.0,0.0004]
[1732559187549,0.14666788,95713.0,95712.0,0.0094]
[1732559187755,0.053242,95713.0,95712.0,0.0094]
[1732559188142,0.056242,95713.0,95712.0,0.0004]
[1732559188653,0.052242,95713.0,95712.0,0.0004]
[1732559188839,0.056242,95713.0,95712.0,0.0004]
[1732559189443,0.004,95713.0,95712.0,0.0004]
[1732559189651,0.004,95713.0,95712.0,0.052642]
[1732559191655,0.09336547,95716.0,95715.0,0.052241]
[1732559191852,0.09336547,95716.0,95715.0,0.212801]
[1732559192051,0.09336547,95716.0,95715.0,0.213201]
[1732559192459,0.09336547,95716.0,95715.0,0.526641]
[1732559193761,0.09736547,95716.0,95715.0,0.526641]
[1732559194253,0.09736547,95716.0,95715.0,0.54528971]
[1732559194857,0.00407545,95716.0,95715.0,0.54528971]
[1732559197253,0.00407545,95716.0,95715.0,0.07128971]
[1732559197465,0.05631545,95716.0,95715.0,0.07128971]
[1732559197751,7.545e-05,95716.0,95715.0,0.07128971]
[1732559197951,0.00407545,95716.0,95715.0,0.07128971]
[1732559198345,7.545e-05,95716.0,95715.0,0.07128971]
[1732559198548,0.00407545,95716.0,95715.0,0.07128971]
[1732559199847,0.00307545,95716.0,95715.0,0.07128971]
[1732559202846,7.545e-05,95716.0,95715.0,0.07128971]
[1732559203052,0.00307545,95716.0,95715.0,0.07128971]
[1732559203449,7.545e-05,95716.0,95715.0,0.07128971]
[1732559203762,0.00307545,95716.0,95715.0,0.07128971]
[1732559204155,7.545e-05,95716.0,95715.0,0.07128971]
[1732559204362,0.00307545,95716.0,95715.0,0.07128971]
[1732559206052,0.05531545,95716.0,95715.0,0.07128971]
[1732559206249,0.00307545,95716.0,95715.0,0.07128971]
[1732559206957,7.545e-05,95716.0,95715.0,0.07128971]
[1732559207166,0.00307545,95716.0,95715.0,0.07128971]
[1732559207554,7.545e-05,95716.0,95715.0,0.07128971]
[1732559207750,0.00307545,95716.0,95715.0,0.07128971]
[1732559208152,7.545e-05,95716.0,95715.0,0.23180971]
[1732559208354,0.00307545,95716.0,95715.0,0.23180971]
[1732559211357,0.03871933,95722.0,95715.0,0.23180971]
[1732559211556,0.0026,95735.0,95721.0,0.3608]
[1732559211756,0.0004,95739.0,95738.0,0.052228]
[1732559212463,0.0004,95739.0,95736.0,0.15836]
[1732559212764,0.0004,95739.0,95738.0,0.052628]
[1732559212965,0.05120386,95739.0,95738.0,0.052628]
[1732559213161,0.05420386,95739.0,95738.0,0.052628]
[1732559213665,0.05120386,95739.0,95738.0,0.052628]
[1732559213865,0.05420386,95739.0,95738.0,0.052628]
[1732559214169,0.05120386,95739.0,95738.0,0.052628]
[1732559214368,0.05420386,95739.0,95738.0,0.07192971]
[1732559216759,0.15970884,95739.0,95738.0,0.38538331]
[1732559217066,0.0034,95739.0,95738.0,0.38538331]
[1732559217970,0.0034,95739.0,95738.0,0.07202331]
[1732559218367,0.00043,95739.0,95738.0,0.07202331]
[1732559218566,0.00043,95739.0,95738.0,0.38538331]
[1732559218756,9.272e-05,95745.0,95738.0,0.38538331]
[1732559218956,9.272e-05,95745.0,95744.0,0.413025]
[1732559219164,0.20795056,95760.0,95750.0,0.052221]
[1732559219368,0.14070557,95781.0,95761.0,0.052215]
[1732559219369,0.036,95779.0,95761.0,0.052215]
[1732559219665,0.0343,95792.0,95778.0,0.413806]
[1732559219858,0.0343,95792.0,95791.0,0.052199]
[1732559220063,0.086499,95792.0,95791.0,0.0008]
[1732559220261,0.08662541,95792.0,95791.0,0.0008]
[1732559220460,0.03442641,95792.0,95791.0,0.052999]
[1732559220666,0.00012641,95792.0,95791.0,0.052999]
[1732559220865,0.00012641,95792.0,95791.0,0.3608]
[1732559221769,0.00012641,95792.0,95791.0,0.07155693]
[1732559221976,0.00212641,95792.0,95784.0,0.052203]
[1732559222273,0.0004,95785.0,95780.0,0.15828]
[1732559222662,0.00212641,95792.0,95783.0,0.052203]
[1732559222863,0.052206,95779.0,95778.0,0.01947633]
[1732559223059,0.052206,95779.0,95778.0,0.0008]
[1732559223763,0.31324,95779.0,95769.0,0.3608]
[1732559223965,0.052211,95771.0,95770.0,0.05221]
[1732559224166,0.052212,95768.0,95758.0,0.052217]
[1732559224469,0.052223,95749.0,95748.0,0.052222]
[1732559224967,0.052223,95749.0,95728.0,0.3608]
[1732559224968,0.31412,95749.0,95734.0,0.05223]
[1732559225170,0.31412,95749.0,95738.0,0.0523196]
[1732559225171,0.052227,95739.0,95738.0,0.0523196]
[1732559225365,0.052227,95739.0,95738.0,9.36e-05]
[1732559225366,0.053027,95739.0,95738.0,9.36e-05]
[1732559226574,0.056027,95739.0,95738.0,9.36e-05]
[1732559227667,0.10683879,95739.0,95738.0,9.36e-05]
[1732559228071,0.10583879,95739.0,95738.0,9.36e-05]
[1732559228773,0.57765063,95739.0,95738.0,9.36e-05]
[1732559228966,0.052231,95732.0,95731.0,0.0026]
[1732559229165,0.052231,95732.0,95703.0,0.3608]
[1732559229166,0.052235,95725.0,95724.0,0.0026]
[1732559229372,0.052235,95725.0,95703.0,0.3608]
[1732559229373,0.052237,95722.0,95721.0,0.0026]
[1732559229667,0.052237,95722.0,95703.0,0.3608]
[1732559229668,0.052239,95717.0,95716.0,0.0026]
[1732559229873,0.05082084,95717.0,95712.0,0.0026]
[1732559230061,0.052243,95710.0,95709.0,0.05236654]
[1732559230469,0.0008,95710.0,95709.0,0.05236654]
[1732559230662,0.0008,95710.0,95709.0,0.21068654]
[1732559231371,0.0008,95710.0,95709.0,0.22989896]
[1732559231963,0.0008,95710.0,95709.0,0.90413896]
[1732559232168,0.05235984,95739.0,95735.0,0.052229]
[1732559232475,0.05235984,95739.0,95738.0,0.3608]
[1732559232476,0.00013184,95739.0,95738.0,0.3608]
[1732559232778,0.00013184,95739.0,95729.0,0.14154983]
[1732559232779,0.00013184,95739.0,95736.0,0.052229]
[1732559233077,0.00013184,95739.0,95734.0,0.15832]
[1732559233078,0.00013184,95739.0,95738.0,0.0004]
[1732559233377,0.00213184,95739.0,95738.0,0.0004]
[1732559233577,0.00213184,95739.0,95738.0,0.3612]
[1732559234864,0.36293184,95739.0,95738.0,0.0004]
[1732559235071,0.052231,95732.0,95731.0,0.0026]
[1732559235371,0.052235,95725.0,95724.0,0.0026]
[1732559235577,0.052238,95719.0,95718.0,0.0026]
[1732559235771,0.052238,95719.0,95710.0,0.052243]
[1732559235772,0.3608,95719.0,95717.0,0.07103088]
[1732559235974,0.3608,95719.0,95717.0,0.01879188]
[1732559235975,0.052239,95719.0,95717.0,0.01879188]
[1732559236273,0.052239,95719.0,95710.0,0.3634]
[1732559236274,0.052243,95712.0,95710.0,0.07342239]
[1732559236478,0.052243,95712.0,95710.0,0.07082239]
[1732559236668,0.00040001,95711.0,95710.0,0.07082239]
[1732559236870,0.05264301,95711.0,95710.0,0.052243]
[1732559237978,0.05264301,95711.0,95704.0,0.0026]
[1732559237979,0.36608301,95711.0,95704.0,0.0026]
[1732559238274,0.05464301,95711.0,95704.0,0.0026]
[1732559238577,0.00040001,95710.0,95704.0,0.0026]
[1732559239088,0.00040001,95710.0,95704.0,1e-08]
[1732559239089,0.31344,95709.0,95704.0,1e-08]
[1732559239270,0.413046,95705.0,95704.0,1e-08]
[1732559239466,0.41344601,95705.0,95704.0,1e-08]
[1732559239678,1.02692601,95705.0,95704.0,1e-08]
[1732559239883,0.72692601,95705.0,95704.0,1e-08]
[1732559240273,0.88596601,95705.0,95704.0,1e-08]
[1732559240468,0.41344601,95705.0,95704.0,1e-08]
[1732559240776,0.41344601,95705.0,95704.0,0.05224701]
[1732559240981,0.36120001,95705.0,95704.0,0.05224701]
[1732559241280,0.00240001,95705.0,95704.0,0.05224701]
[1732559242277,0.00040001,95705.0,95704.0,0.05224701]
[1732559242476,0.00240001,95705.0,95704.0,1e-08]
[1732559244384,0.00040001,95705.0,95704.0,1e-08]
[1732559244581,0.00240001,95705.0,95704.0,1e-08]
[1732559246885,0.00240001,95705.0,95704.0,0.01862344]
[1732559247086,0.00040001,95705.0,95704.0,1e-08]
[1732559247384,0.00240001,95705.0,95704.0,1e-08]
[1732559247775,0.00240001,95705.0,95704.0,0.01924029]
[1732559247988,0.00240001,95705.0,95704.0,1e-08]
[1732559249987,0.00240001,95705.0,95704.0,0.03470001]
[1732559250484,0.00240001,95705.0,95704.0,0.08694701]
[1732559250885,0.00040001,95705.0,95704.0,0.08694701]
[1732559251186,0.00240001,95705.0,95704.0,0.08694701]
[1732559251993,0.00040001,95718.0,95717.0,0.052239]
[1732559252290,0.00040001,95718.0,95717.0,0.413439]
[1732559252488,0.00040001,95718.0,95717.0,1.087679]
[1732559253484,0.00013184,95739.0,95738.0,0.052228]
[1732559253687,0.00013184,95739.0,95738.0,0.05233209]
[1732559253991,1.15893817,95763.0,95757.0,0.052218]
[1732559253992,0.02091306,95759.0,95757.0,0.052218]
[1732559254489,0.07313006,95759.0,95758.0,0.00040001]
[1732559254695,0.052217,95759.0,95758.0,0.00040001]
[1732559255088,0.05231705,95759.0,95758.0,0.00040001]
[1732559255290,0.05231705,95759.0,95754.0,0.052219]
[1732559255291,0.05231705,95759.0,95746.0,0.3608]
[1732559255596,0.05431705,95759.0,95746.0,0.3608]
[1732559255897,0.0004,95747.0,95746.0,0.413024]
[1732559256894,0.0004,95747.0,95746.0,0.43189189]
[1732559257394,0.0004,95747.0,95746.0,0.37966789]
[1732559257579,0.0004,95747.0,95738.0,0.00010409]
[1732559257580,0.3612,95747.0,95738.0,0.00010409]
[1732559257785,0.15583311,95742.0,95740.0,0.052227]
[1732559257991,0.15583311,95743.0,95738.0,0.00010409]
[1732559258182,0.15583311,95744.0,95742.0,0.052226]
[1732559258496,0.15581052,95744.0,95743.0,0.052225]
[1732559259592,0.15578752,95744.0,95743.0,0.052225]
[1732559260286,0.002,95744.0,95743.0,0.052225]
[1732559260590,0.15778752,95744.0,95743.0,0.052225]
[1732559260793,0.20801252,95744.0,95743.0,0.052225]
[1732559260984,0.002,95744.0,95743.0,0.052225]
[1732559261895,0.15578752,95747.0,95746.0,0.052224]
[1732559262284,0.18702035,95752.0,95746.0,0.0004]
[1732559262484,0.0009699,95753.0,95746.0,0.0004]
[1732559262485,0.1557432,95749.0,95748.0,0.052223]
[1732559263593,0.1557432,95751.0,95748.0,0.052223]
[1732559263786,0.1557432,95751.0,95749.0,0.052222]
[1732559263991,0.1567131,95753.0,95751.0,0.052221]
[1732559264497,0.0009699,95753.0,95752.0,0.0004]
[1732559266395,0.0029699,95753.0,95752.0,0.0004]
[1732559266793,0.0009699,95753.0,95752.0,0.0004]
[1732559266989,0.0029699,95753.0,95752.0,0.0004]
[1732559267395,0.0029699,95753.0,95752.0,0.05262]
[1732559270202,0.4159899,95753.0,95752.0,0.05262]
[1732559270403,0.052225,95743.0,95742.0,0.0004]
[1732559271001,0.088425,95743.0,95742.0,0.0004]
[1732559271310,0.088825,95743.0,95742.0,0.0004]
[1732559271507,0.052227,95739.0,95738.0,0.00010409]
[1732559271699,0.52672701,95743.0,95735.0,0.01887288]
[1732559271700,0.052229,95736.0,95735.0,0.01887288]
[1732559272008,0.366389,95736.0,95735.0,0.01887288]
[1732559272199,0.053029,95736.0,95735.0,0.01887288]
[1732559272404,0.0008,95736.0,95722.0,0.0026]
[1732559272604,0.052234,95729.0,95728.0,0.052233]
[1732559273912,0.054234,95729.0,95728.0,0.052233]
[1732559274116,0.002,95729.0,95728.0,0.052233]
[1732559274319,0.0384,95744.0,95728.0,0.052233]
[1732559274320,0.0026,95744.0,95737.0,0.052229]
[1732559274619,0.413021,95752.0,95750.0,0.052221]
[1732559274816,0.052221,95751.0,95750.0,0.052221]
[1732559275616,0.052221,95751.0,95740.0,0.3608]
[1732559275617,0.052229,95738.0,95737.0,0.052228]
[1732559276124,0.12473643,95743.0,95742.0,0.052226]
[1732559276420,0.3608,95744.0,95743.0,0.052225]
[1732559276421,0.001,95744.0,95743.0,0.052225]
[1732559276613,0.053225,95744.0,95743.0,0.052225]
[1732559276812,0.052225,95744.0,95743.0,0.052225]
[1732559277013,0.17696143,95744.0,95743.0,0.052225]
[1732559277212,0.052225,95744.0,95743.0,0.052225]
[1732559277417,0.052225,95744.0,95743.0,0.052625]
[1732559277627,0.2079652,95749.0,95748.0,0.052222]
[1732559277917,0.210422,95749.0,95748.0,0.052622]
[1732559278226,0.210422,95749.0,95748.0,0.0004]
[1732559279013,0.210422,95749.0,95748.0,0.052623]
[1732559279821,0.210422,95749.0,95748.0,0.0004]
[1732559280120,0.71176235,95749.0,95734.0,0.0026]
[1732559280319,0.71176235,95749.0,95721.0,0.0001345]
[1732559280320,0.18702035,95736.0,95729.0,0.052233]
[1732559280511,0.18702035,95736.0,95728.0,0.3634]
[1732559280512,0.0012,95735.0,95734.0,0.05223]
[1732559280710,0.05200911,95735.0,95734.0,0.05223]
[1732559281021,0.052233,95729.0,95728.0,0.3608]
[1732559281214,0.05080911,95729.0,95728.0,0.3608]
[1732559281521,0.052237,95722.0,95721.0,0.0001345]
[1732559281723,0.10304611,95722.0,95721.0,0.0001345]
[1732559282028,0.10424611,95722.0,95721.0,0.0001345]
[1732559282334,0.053437,95722.0,95721.0,3.206e-05]
[1732559282513,0.727637,95722.0,95721.0,3.206e-05]
[1732559282716,0.74894808,95722.0,95721.0,3.206e-05]
[1732559282918,0.74894808,95722.0,95684.0,0.3608]
[1732559282919,0.052243,95711.0,95692.0,0.0191892]
[1732559283121,0.1876171,95693.0,95692.0,0.052253]
[1732559283411,0.0012,95693.0,95692.0,0.052253]
[1732559283613,0.15738666,95693.0,95692.0,0.052253]
[1732559284018,0.15749907,95693.0,95692.0,0.05236127]
[1732559284413,0.00131241,95693.0,95692.0,0.05236127]
[1732559284616,0.15838857,95693.0,95692.0,0.05236127]
[1732559284819,0.15838857,95693.0,95692.0,0.41316127]
[1732559285016,0.00231241,95693.0,95692.0,0.41316127]
[1732559285218,0.12716365,95693.0,95692.0,0.41316127]